[Event "Vugar Gashimov Memorial 2023"]
[Site "Chess.com"]
[Date "2023.12.10"]
[Round "7"]
[White "Suleymanli, Aydin"]
[Black "Abbasov, Nijat"]
[Result "1-0"]
[WhiteElo "2517"]
[BlackElo "2554"]
[ECO "B51"]
[EventDate "2023.??.??"]
[Annotator "rafael"]
[PlyCount "65"]
[Beauty "8179362627157"]
[EventType "team-tourn"]
[TimeControl "600+10"]

{[%evp 0,65,25,16,58,58,77,55,76,53,47,52,50,35,38,30,24,16,7,-5,-3,-3,11,-20,21,-43,-32,-50,-40,-46,-43,-13,-13,-40,13,-84,-50,18,14,69,48,60,268,250,479,420,364,372,372,388,384,349,381,224,483,519,528,546,544,360,684,622,708,732,732,661,779,1024]} 
1.e4 c5 2.Nf3 d6 3.Bb5+ Nd7 4.O-O a6 5.Be2 $5 {[%c_effect e2;square;e2;type;Interesting;persistent;true] A currently fashionable move.} ( 5.Bd3 ) ( 5.Bxd7+ ) 5...Ngf6 6.d3 {Black has to make a common decision for Sicilian players: where to develop the f8-bishop.} 6...g6 {The most popular choice but Carlsen played 6...e6.} ( 6...e6 7.a4 b6 8.Nfd2 {Perhaps this plan by Nepomniachtchi served as inspiration for Suleymanli.} 8...Be7 9.f4 O-O 10.Bf3 Bb7 11.Nc3 d5 12.g4 $1 {[%c_effect g4;square;g4;type;GreatFind;persistent;true] White has the initiative: Nepomniachtchi-Carlsen, AI Cup Div 1 Chess.com rapid 2023.} ) 7.a4 ( 7.c4 {is a good way of playing. A possible continuation is:} 7...Bg7 8.Nc3 O-O 9.d4 cxd4 10.Nxd4 {with the advantage.} ) 7...b6 {A good move, preparing development and preventing a4-a5.} 8.Nfd2 $5 {[%c_effect d2;square;d2;type;Interesting;persistent;true] The same plan Nepomniachtchi tried against Carlsen.} ( 8.c4 {followed by Nc3 is also possible.} ) 8...Bg7 9.f4 Bb7 10.Qe1 b5 {A good move, but castling is also perfectly possible.} ( 10...O-O $1 {[%c_effect g8;square;g8;type;GreatFind;persistent;true] White's attack doesn't seem so dangerous.} 11.Qh4 e6 ) 11.Nc3 ( 11.Bf3 $1 {[%c_effect f3;square;f3;type;GreatFind;persistent;true] with the idea of playing e4-e5, which is the best way to fight for the initiative.} ) 11...Qb6 ( 11...b4 12.Nd1 {The knight will be put back into play on e3.} ) 12.a5 $6 {[%c_effect a5;square;a5;type;Inaccuracy;persistent;true] This looks like a strange move, but White wants the queen in a worse position. The problem is that he loses the option of capturing on b5 and opening the queenside.} ( 12.Bf3 e5 13.g4 c4+ 14.Kh1 cxd3 15.g5 Nh5 {leads to a total mess.} ) 12...Qc7 13.Bf3 e5 $1 {[%c_effect e5;square;e5;type;GreatFind;persistent;true]} 14.g4 ( 14.f5 $2 {[%c_effect f5;square;f5;type;Mistake;persistent;true]} 14...gxf5 $1 {[%c_effect f5;square;f5;type;GreatFind;persistent;true]} 15.exf5 d5 {Black has a decisive positional advantage with such a strong center.} ) 14...exf4 ( 14...h6 {is also possible:} 15.f5 ( 15.g5 Nh7 $1 {[%c_effect h7;square;h7;type;GreatFind;persistent;true] White's pawn structure can collapse.} ) 15...gxf5 16.gxf5 h5 {Followed by long castling with the advantage. We can now see the problem of White having closed the queenside with a4-a5.} ) 15.g5 Ng8 16.Nd5 Qd8 ( 16...Bxd5 {is enough for the advantage:} 17.exd5+ Be5 ) 17.e5 $6 {[%c_effect e5;square;e5;type;Inaccuracy;persistent;true] This risky move will work very well, but objectively it's bad.} ( 17.Nxf4 Qxg5+ 18.Bg2 {White has some practical compensation for the pawn.} ) 17...Bxe5 $2 {[%c_effect e5;square;e5;type;Mistake;persistent;true] The two other captures are superior.} ( 17...Nxe5 18.Nf6+ Nxf6 $1 {[%c_effect f6;square;f6;type;GreatFind;persistent;true]} ( 18...Bxf6 $2 {[%c_effect f6;square;f6;type;Mistake;persistent;true]} 19.Bxb7 {with the advantage for White.} ) 19.Bxb7 ( 19.gxf6 $2 {[%c_effect f6;square;f6;type;Mistake;persistent;true] loses:} 19...Bxf3 20.fxg7 Qg5+ 21.Qg3 ( 21.Kf2 Qg2# ) 21...fxg3 22.gxh8=Q+ Kd7 $1 {[%c_effect d7;square;d7;type;GreatFind;persistent;true] and White can resign.} ) 19...Nh5 20.Bxa8 Qxa8 {with a big advantage for Black.} ) ( 17...dxe5 18.Nf6+ Bxf6 $1 {[%c_effect f6;square;f6;type;GreatFind;persistent;true]} 19.Bxb7 Ra7 ( 19...Bxg5 {is also good.} ) 20.gxf6 Rxb7 {White doesn't have enough compensation.} ) 18.Nb6 $1 {[%c_effect b6;square;b6;type;GreatFind;persistent;true]} ( 18.Nf6+ {is bad:} 18...Ngxf6 19.Bxb7 Rb8 ) 18...Qxg5+ $6 {[%c_effect g5;square;g5;type;Inaccuracy;persistent;true] Another inaccurate move.} ( 18...Nxb6 19.Bxb7 Ra7 20.axb6 Rxb7 21.Ne4 {with complicated play.} ) ( 18...Rb8 19.Bxb7 Rxb7 20.Ne4 Nxb6 21.axb6 Qxb6 22.Bxf4 {with compensation for the sacrificed material.} ) ( 18...Bxf3 19.Nxf3 Ne7 $1 {[%c_effect e7;square;e7;type;GreatFind;persistent;true] is a good practical choice, offering the exchange in order to complete the development.} ) 19.Kh1 Rb8 $2 {[%c_effect b8;square;b8;type;Mistake;persistent;true] This move loses.} ( 19...Bxf3+ 20.Nxf3 Qd8 21.Nxd7 $1 {[%c_effect d7;square;d7;type;GreatFind;persistent;true]} ( 21.Nxa8 Qxa8 22.Bxf4 Ne7 {is very comfortable for Black.} ) 21...Qxd7 22.Nxe5 dxe5 23.Qxe5+ Qe6 {Black surprisingly survives.} 24.Qxh8 ( 24.Re1 Qxe5 25.Rxe5+ Ne7 26.Bxf4 Kd7 {with an equal endgame.} ) 24...Qd5+ 25.Kg1 Qg5+ 26.Kf2 O-O-O $1 {[%c_effect c8;square;c8;type;GreatFind;persistent;true] with counterplay that is enough for a draw, probably by perpetual check.} ) 20.Bxb7 Rxb7 $2 {[%c_effect b7;square;b7;type;Mistake;persistent;true]} ( 20...Nxb6 {is the last chance.} 21.axb6 Rxb7 {White has many tempting continuations now.} 22.Rxa6 {This is the simplest with a clear advantage.} ( 22.Ne4 ) ( 22.Nf3 ) ) 21.Ne4 $1 {[%c_effect e4;square;e4;type;GreatFind;persistent;true]} 21...Qh5 ( 21...Qe7 22.Nc8 $1 {[%c_effect c8;square;c8;type;GreatFind;persistent;true] This was probably missed by Abasov.} 22...Qe6 23.Ncxd6+ ) 22.Nxd6+ Kf8 23.Nxb7 Nxb6 24.axb6 {White is a rook up, and the game is over. He will finish it in style.} 24...f3 25.Qf2 Nf6 26.Bh6+ $1 {[%c_effect h6;square;h6;type;GreatFind;persistent;true]} 26...Kg8 ( 26...Qxh6 27.Qxc5+ {followed by capturing the bishop.} ) 27.Rae1 Ng4 28.Qg3 $1 {[%c_effect g3;square;g3;type;GreatFind;persistent;true]} 28...f6 ( 28...Bxg3 29.Re8# ) 29.Rxe5 fxe5 30.Bd2 ( 30.Nd8 {is very good, followed by b7.} ) 30...f2 31.h3 Nf6 32.Rxf2 Kg7 33.Bg5 1-0

[Event "Chess Classic 2023"]
[Site "London"]
[Date "2023.12.02"]
[Round "2"]
[White "Bartel, Mateusz"]
[Black "Moussard, Jules"]
[Result "1-0"]
[WhiteElo "2659"]
[BlackElo "2635"]
[ECO "A17"]
[EventDate "2023.??.??"]
[Annotator "rafael"]
[PlyCount "59"]
[Beauty "8247276746283"]
[EventType "swiss"]
[EventRounds "9"]
[EventCountry "CAN"]
[TimeControl "5400+30"]

{[%evp 0,59,19,22,24,11,17,23,29,3,17,9,21,-3,-27,-27,-24,-35,-9,-1,0,0,0,-33,-33,-78,-64,-37,-37,-62,-69,-90,-90,-75,-18,-21,-26,-64,-65,-78,-56,-100,-9,-36,62,61,77,60,106,106,115,36,28,29,141,142,242,299,1340,1339,1372,1372]} 
1.Nf3 Nf6 2.c4 e6 3.Nc3 Bb4 4.Qb3 ( 4.Qc2 {is the most popular move.} ) ( 4.g4 $5 {[%c_effect g4;square;g4;type;Interesting;persistent;true] Even this is possible, a pawn advance we will soon see on the board.} ) 4...c5 5.a3 Ba5 ( 5...Bxc3 $6 {[%c_effect c3;square;c3;type;Inaccuracy;persistent;true] is a positional error, as it simply hands the pair of bishops to White.} ) 6.g4 $6 {[%c_effect g4;square;g4;type;Inaccuracy;persistent;true] A thematic move in the English Opening but rare in this specific position. The computer isn't impressed, and the feeling is that this is a bad version of the g-pawn advance. It's important to highlight that the first chess player to try this move is the legendary grandmaster and World Champion Maia Chiburdanidze.} 6...h6 $1 {[%c_effect h6;square;h6;type;GreatFind;persistent;true] The best reaction, stopping g4-g5.} ( 6...Nxg4 $6 {[%c_effect g4;square;g4;type;Inaccuracy;persistent;true] This is playing into White's hands.} 7.Rg1 {followed by the capture of the g7-pawn.} ) ( 6...Nc6 {is also possible but less accurate.} 7.g5 Ng4 8.Ne4 Qe7 9.Rg1 f5 10.gxf6 Nxf6 11.Qe3 {with a complicated game in Chiburdanidze-Razuvaev, Palma de Mallorca 1989.} ) 7.Rg1 Nc6 {A new move and a good one.} ( 7...d5 {is also better for Black.} 8.cxd5 ( 8.h4 {is the best try:} 8...d4 9.g5 {with a slightly better position for Black.} ) 8...exd5 9.g5 hxg5 10.Rxg5 Be6 ( 10...Kf8 {is even better.} ) 11.Qxb7 Nbd7 {with excellent compensation for the pawn in Naoum-Paravyan, Wch U16 Al Ain 2013.} ) 8.h4 Nd4 $6 {[%c_effect d4;square;d4;type;Inaccuracy;persistent;true]} ( 8...h5 $1 {[%c_effect h5;square;h5;type;GreatFind;persistent;true] is the best reply, giving Black a clear advantage after either 9.gxh5 or 9.g5. This move (h5) is common in Sicilian positions when White commonly plays g4 and h4. Yet another proof that chess patterns repeat themselves even in very different openings.} 9.gxh5 ( 9.g5 Ng4 {The kingside is closed, and White's plan loses meaning.} ) 9...Kf8 $1 {[%c_effect f8;square;f8;type;GreatFind;persistent;true] Another very precise move with the idea of playing d7-d5. Black has a clear advantage.} ) 9.Nxd4 cxd4 10.Nb5 d5 {The position is complicated, but it's still better to be in Black's shoes, both practically and objectively.} 11.c5 {An understandable reaction, so the center doesn't open up.} ( 11.Nxd4 e5 {with good play.} ) ( 11.g5 hxg5 12.hxg5 Ne4 {with good counterplay for Black.} ) 11...Ne4 $1 {[%c_effect e4;square;e4;type;GreatFind;persistent;true] Attacking the pawns on c5 and h4.} 12.Nxd4 {This is probably not the best. White could take the queen from b3 so the capture on c5 would no longer be possible due to the fork with b2-b4.} ( 12.Qf3 $1 {[%c_effect f3;square;f3;type;GreatFind;persistent;true] Now the computer recommends an extremely sophisticated maneuver to secure the initiative.} 12...Qd7 ( 12...Nxc5 $2 {[%c_effect c5;square;c5;type;Mistake;persistent;true]} 13.b4 {loses a piece.} ) ( 12...Bxd2+ $5 {[%c_effect d2;square;d2;type;Interesting;persistent;true]} 13.Bxd2 Nxd2 14.Kxd2 Qa5+ 15.b4 Qxb5 16.e4 dxe3+ 17.Qxe3 {with unclear play.} ) 13.Nxd4 Bd8 $1 {[%c_effect d8;square;d8;type;GreatFind;persistent;true] A subtle move, attacking the h4-pawn and preparing to place the bishop on f6.} ) 12...Nxc5 13.Qb5+ Nd7 14.b4 Bb6 15.Bb2 {Both players don't seem to be very interested in the h4-pawn for some reason. The computer is a little greedier.} ( 15.Nf3 {is relatively best, although Black is better after} 15...Qf6 ) 15...a6 ( 15...Qxh4 {There's nothing wrong with putting this pawn in the pocket.} ) 16.Qa4 O-O $2 {[%c_effect g8;square;g8;type;Mistake;persistent;true] White is back in the game now.} ( 16...Qxh4 {Black is simply a pawn up and has the safer king. The computer already evaluates the advantage as winning.} ) 17.g5 Ne5 ( 17...h5 {is a safe move, keeping the kingside closed.} 18.Nf3 {with an equal position.} ) 18.gxh6 g6 19.Qb3 ( 19.h5 $2 {[%c_effect h5;square;h5;type;Mistake;persistent;true] is bad due to} 19...Qh4 $1 {[%c_effect h4;square;h4;type;GreatFind;persistent;true] attacking the d4-knight and the pawn on h5. There's also some pressure on the f2-pawn.} ) 19...Qxh4 {The pawn is finally captured.} 20.h7+ Kh8 {Black has to decide between opening the h-file or placing the king on the dangerous diagonal of the b2-bishop.} ( 20...Qxh7 {is possible with complicated play. White has enough compensation for the pawn.} ) 21.Qe3 ( 21.Qg3 {is better, keeping the game equal.} 21...Qxg3 22.Rxg3 {The point is that the tempting 22...Nc4 doesn't work so well:} 22...Nc4 $6 {[%c_effect c4;square;c4;type;Inaccuracy;persistent;true]} ( 22...Kxh7 ) ( 22...f6 ) 23.Nxe6+ $1 {[%c_effect e6;square;e6;type;GreatFind;persistent;true]} 23...Nxb2 24.Nxf8 Bf5 25.Bh3 Bxh3 26.Nxg6+ fxg6 27.Rxh3 {with a slight advantage for White in this unbalanced endgame.} ) 21...f6 $2 {[%c_effect f6;square;f6;type;Mistake;persistent;true] A losing mistake. Black has two good alternatives.} ( 21...Nc4 {A dangerous move, but it's tactically justified.} 22.Nf3+ Nxb2 23.Qe5+ $1 {[%c_effect e5;square;e5;type;GreatFind;persistent;true]} ( 23.Qxb6 Qf6 {with a good position.} ) ( 23.Qc3+ d4 $1 {[%c_effect d4;square;d4;type;GreatFind;persistent;true]} ) 23...f6 24.Nxh4 Bxf2+ $1 {[%c_effect f2;square;f2;type;GreatFind;persistent;true] The only move.} 25.Kxf2 fxe5+ 26.Ke1 Kxh7 27.Rc1 Bd7 28.Rc7 Rad8 {with a balanced position.} ) ( 21...Qf6 $1 {[%c_effect f6;square;f6;type;GreatFind;persistent;true] is the most accurate move when Black keeps the better position.} ) 22.Nf3 $1 {[%c_effect f3;square;f3;type;GreatFind;persistent;true] A beautiful move, clearly missed by Moussard.} 22...Nxf3+ ( 22...Bxe3 {loses material after} 23.Nxh4 ) 23.Qxf3 {Sadly for Black, there's no way to defend the important g6-pawn.} 23...e5 ( 23...Kg7 $2 {[%c_effect g7;square;g7;type;Mistake;persistent;true]} 24.Rh1 Qg5 25.h8=Q+ Rxh8 26.Rxh8 Kxh8 27.Bxf6+ ) 24.Rxg6 Be6 25.Rc1 ( 25.e3 $1 {[%c_effect e3;square;e3;type;GreatFind;persistent;true] is the best move, immediately preparing Bd3.} ) 25...Rf7 $1 {[%c_effect f7;square;f7;type;GreatFind;persistent;true]} 26.e3 Re8 $2 {[%c_effect e8;square;e8;type;Mistake;persistent;true] The rook is not very useful on e8. It's better to move it to f8, defending the f6-pawn and making the e5-e4 advance a possibility.} ( 26...Raf8 $1 {[%c_effect f8;square;f8;type;GreatFind;persistent;true]} ) 27.Bd3 $1 {[%c_effect d3;square;d3;type;GreatFind;persistent;true] The bishop comes to play at the right time. Now it supports the pawn on h7, frees the path for the plan with Ke2-Rh1, and can also go to f5.} 27...Bd8 {This loses on the spot.} 28.Bxe5 $1 {[%c_effect e5;square;e5;type;GreatFind;persistent;true] A nice tactical solution.} 28...Rxh7 ( 28...fxe5 {loses to} 29.Rxe6 $1 {[%c_effect e6;square;e6;type;GreatFind;persistent;true]} 29...Rxf3 ( 29...Rxe6 30.Qxf7 ) 30.Rxe8+ Kg7 31.Rg8+ {followed by the promotion with h7-h8.} ) 29.Rxf6 Qh1+ 30.Ke2 1-0

[Event "Chess Classic 2023"]
[Site "London"]
[Date "2023.12.09"]
[Round "8"]
[White "Moussard, Jules"]
[Black "Royal, Shreyas"]
[Result "0-1"]
[WhiteElo "2635"]
[BlackElo "2438"]
[ECO "D02"]
[EventDate "2023.??.??"]
[Annotator "rafael"]
[PlyCount "136"]
[Beauty "5914841070628"]
[EventType "swiss"]
[EventRounds "9"]
[EventCountry "CAN"]
[TimeControl "5400+30"]

{[%evp 0,136,26,16,20,-14,28,28,42,33,35,17,17,13,15,14,13,13,23,23,27,8,21,17,24,24,24,17,-5,10,-5,2,18,-1,31,24,53,59,61,74,74,58,58,58,58,58,58,67,83,67,71,64,67,54,55,35,44,108,151,150,175,175,172,186,199,195,188,188,201,169,197,206,193,187,188,193,205,217,221,209,218,173,199,82,74,53,41,52,55,-131,-140,-187,-41,-51,-51,-55,-55,-232,-243,-243,-243,-250,-250,-248,-248,-270,-274,-274,-271,-297,-300,-304,-305,-305,-302,-302,-325,-353,-382,-381,-378,-418,-442,-498,-504,-507,-507,-504,-524,-618,-638,-622,-634,-660,-670,-722,-706,-719,-761]} 
1.Nf3 d5 2.g3 Nd7 3.d4 Nb6 {A strategically creative system: the b6-square is not the knight's natural habitat. The advantage is that it's more difficult for White to play the pawn to c4.} 4.Bg2 Bf5 5.b3 $5 {[%c_effect b3;square;b3;type;Interesting;persistent;true] Not so much to fianchetto the bishop, but rather to play c4.} 5...e6 6.O-O h6 7.c4 c6 8.Nbd2 {I don't really like this square for the knight, I think it could go to c3, either now or after c5.} ( 8.c5 Nd7 9.b4 Ngf6 10.Nc3 ) ( 8.Nc3 ) 8...Nf6 9.Bb2 Be7 10.e3 {A thematic move, making way for the queen on e2.} 10...O-O 11.Qe2 a5 $1 {[%c_effect a5;square;a5;type;GreatFind;persistent;true] Advancing the pawn to a4 is a good plan that shows the advantage of the knight on b6 and the disadvantage of the knight on d2.} 12.Ne5 Nbd7 13.Nd3 {A new move.} ( 13.Nxd7 Qxd7 {was equal in Krysa-Fedoseev,Titled Tuesday blitz 2020.} ) ( 13.Rfd1 {is also a possible move.} ) 13...a4 {A natural continuation. 13...Ne4 and 13...Qb3 are good options, with equality in both cases.} ( 13...Ne4 ) ( 13...Qb6 ) 14.Rfc1 ( 14.e4 {is a normal break, but here Black is fine due to the queenside counterplay.} 14...dxe4 15.Nxe4 Nxe4 16.Bxe4 Bxe4 17.Qxe4 Qb6 ( 17...Bf6 {is also good.} ) ) 14...Qb6 15.c5 Qa6 ( 15...Qb5 {is more accurate. The difference is that after} 16.Bf1 b6 $1 {[%c_effect b6;square;b6;type;GreatFind;persistent;true] White cannot play 17.b4 due to the pressure on the b2-bishop.} ) 16.Bf1 b5 $2 {[%c_effect b5;square;b5;type;Mistake;persistent;true] This is a clear positional mistake. Black shouldn't close the queenside.} ( 16...b6 {is better:} 17.b4 Rfb8 {with equal chances.} ) 17.f3 {Now White can prepare to advance in the center without any major worries.} 17...axb3 18.axb3 Qb7 19.e4 Bh7 20.e5 {White has achieved a clear advantage.} 20...Ne8 21.Rxa8 Qxa8 22.Ra1 Qb7 23.b4 g5 $5 {[%c_effect g5;square;g5;type;Interesting;persistent;true] A difficult move, as it creates more weaknesses, but Black tries to generate some activity.} ( 23...Nc7 24.Nb3 {is sad for Black.} ) 24.Nb3 Ng7 25.Na5 {The knight on a5 fulfills an important function, pinning Black to the defense of the c6-pawn. It can come back when needed.} 25...Qc7 26.Nf2 h5 {Probably played with the idea of taking away the knight's g4-square, but this creates even more weaknesses.} 27.Re1 ( 27.Nb3 f6 28.Ra3 $1 {[%c_effect a3;square;a3;type;GreatFind;persistent;true] This is a very strong plan, suggested by the computer. White prepares total dominance of the a-file. To do this, he simply needs to place the queen behind the rook.} ) 27...Re8 ( 27...f6 {is a better chance to create some play.} ) 28.Qd2 Nf8 29.Nh3 {Black loses a pawn on the kingside.} 29...g4 30.fxg4 hxg4 31.Nf2 Bf5 32.Be2 ( 32.Qd1 {is also good.} ) 32...Nh7 33.Nxg4 {White has a winning position, with an extra pawn and well-placed pieces. There are many ways to play in the next few moves, but I will focus on the critical moments that made the game change hands.} 33...Bg6 34.Qf4 Nf5 35.h4 Kh8 36.Ne3 Nxe3 37.Qxe3 f5 38.Qf4 Rg8 39.Kf2 Be8 40.Ke3 ( 40.Bc1 {White's best approach is to bring this bishop back into the game, avoiding any tactical issues and maintaining a decisive advantage.} ) 40...Bd8 41.Kd3 $2 {[%c_effect d3;square;d3;type;Mistake;persistent;true]} ( 41.Kf2 {White can return the king and keep maneuvering.} ) ( 41.Bc1 {allows} 41...Ng5 $5 {[%c_effect g5;square;g5;type;Interesting;persistent;true] White has a big material advantage, but the win still has to be demonstrated after} 42.hxg5 Bxg5 43.Rh1+ Qh7 44.Rxh7+ Kxh7 45.Kf2 Bxf4 46.Bxf4 ) 41...Nf6 $1 {[%c_effect f6;square;f6;type;GreatFind;persistent;true][%c_arrow h7f6;keyPressed;none;from;h7;opacity;0.8;to;f6;persistent;false] Suddenly Black is back in the game due to this tactical shot.} 42.Rg1 ( 42.exf6 $2 {[%c_effect f6;square;f6;type;Mistake;persistent;true] loses the queen after} 42...Rxg3+ ) ( 42.Qh6+ {is a good practical choice, since after} 42...Qh7 43.Qxh7+ Nxh7 {the knight at least doesn't arrive on e4, although the g3-pawn cannot be protected.} ) 42...Ne4 {The knight, which was previously a sad piece with no prospects, suddenly becomes a monster on e4.} 43.Kc2 $2 {[%c_effect c2;square;c2;type;Mistake;persistent;true]} ( 43.Bc3 $1 {[%c_effect c3;square;c3;type;GreatFind;persistent;true] is the only chance, bringing the bishop to e1 to protect the pawn chain.} 43...Qh7 44.Be1 ) 43...Qh7 44.Kb3 Bxh4 $1 {[%c_effect h4;square;h4;type;GreatFind;persistent;true]} 45.Bc3 Nxg3 ( 45...Rxg3 {is an easier way to convert the advantage.} 46.Rxg3 Bxg3 47.Qf3 Qh4 {with an easily winning position.} ) 46.Bf3 Rg6 $1 {[%c_effect g6;square;g6;type;GreatFind;persistent;true]} 47.Rg2 Qh6 $1 {[%c_effect h6;square;h6;type;GreatFind;persistent;true]} 48.Bd2 $2 {[%c_effect d2;square;d2;type;Mistake;persistent;true]} ( 48.Qxh6+ {is the only move.} 48...Rxh6 49.Bd2 Rh7 {White has drawing chances.} ) 48...Bg5 $1 {[%c_effect g5;square;g5;type;GreatFind;persistent;true] This was certainly missed by Moussard.} 49.Qxg3 Bxd2 50.Qh2 Rxg2 51.Qxh6+ ( 51.Qxg2 Qe3+ ) 51...Bxh6 52.Bxg2 Bd2 {The rest is very easy: the king enters the game and the knight is unable to help.} 53.Bf1 Kg7 54.Nb7 Kg6 55.Kc2 Bxb4 56.Kd3 Be1 57.Be2 Bf2 58.Bd1 Kg5 59.Be2 Bg1 60.Bd1 Kh4 61.Be2 f4 62.Nd8 Bd7 63.Nf7 b4 64.Bd1 Be8 65.Nd8 Bg6+ 66.Kd2 Bxd4 67.Nxe6 Bc3+ 68.Kc1 Bxe5 0-1